[Event "Arsen Yeghiazaryan Memorial 2022"]
[Site "Yerevan"]
[Date "2022.07.01"]
[Round "1.1"]
[White "Morchiashvili, Bachana"]
[Black "Yeremyan, Alen"]
[Result "0-1"]
[ECO "B38"]
[WhiteElo "2305"]
[BlackElo "2233"]
[Annotator "TA"]
[PlyCount "117"]
[EventDate "2022.06.30"]
[EventType "tourn"]
[EventCountry "ARM"]
[SourceTitle "playchess.com"]
[Source "ChessBase"]
[SourceQuality "1"]
[TimeControl "40/5400+30:1800+30"]

{[%evp 26,117,45,43,43,43,49,21,44,15,45,37,59,39,44,27,49,14,35,0,47,0,30,6,43,14,25,10,33,16,42,32,29,19,31,25,36,37,35,37,37,0,0,0,0,0,0,0,0,-42,-14,-12,-14,-73,-73,-61,-72,-79,-54,-54,-46,-79,-79,-79,-73,-70,-57,-70,-42,-52,-52,-52,-52,-74,-73,-85,-85,-97,-85,-85,-58,-5065,-4935,-2153,-1487,-1943,-2153,-29955,-29958,-29952,-29955,-29958,-5527,-1506]} 1. c4 {[%emt 0:00:03]} Nf6 {[%emt 0:00:15]} 2. Nc3 {[%emt 0:00:07]} g6 {[%emt 0:00:33]} 3. e4 {[%emt 0:01:15]} d6 {[%emt 0:01:43]} 4. d4 {[%emt 0:00:13]} Bg7 {[%emt 0:00:30]} 5. Nf3 {[%emt 0:00:08]} O-O {[%emt 0:00:49]} 6. Be2 {[%emt 0:00:03]} c5 {[%emt 0:02:10]} 7. O-O {[%emt 0:04:40]} cxd4 {[%emt 0:02:03]} 8. Nxd4 {[%emt 0:00:03]} Nc6 {[%emt 0:00:29]} 9. Be3 {[%emt 0:00:06]} Nxd4 {[%emt 0:02:26]} 10. Bxd4 {[%emt 0:00:17]} a5 {[%emt 0:01:12]} 11. Qd2 {[%emt 0:07:06]} Bd7 {[%emt 0:02:57]} 12. f3 {[%emt 0:18:00]} Bc6 {[%emt 0:00:49]} 13. Rfd1 {[%emt 0:00:06]} Nd7 {[%emt 0:00:52]} 14. Be3 {[%emt 0:00:05] 14.Bf2 is the fancy move.} a4 {[%emt 0:03:07] B38: Sicilian: Maroczy Bind with 5...Bg7 and 7...0-0.} 15. Rab1 {[%emt 0:14:51]} Qa5 {[%emt 0:04:57]} 16. Rdc1 {[%emt 0:00:37] [#]} Nc5 $146 {[%emt 0:08:05] The position is equal.} ({Predecessor:} 16... f5 17. Bd3 Ne5 18. exf5 Bxf3 19. fxg6 hxg6 20. Be2 Bg4 21. Re1 Bxe2 22. Qxe2 Qb4 23. c5 Ng4 24. a3 Qd4 25. Bxd4 Bxd4+ 26. Kh1 Nf2+ 27. Kg1 Nh3+ {½-½ (27) Civric,Z (2211)-Marinkovic,Z (2240) Sabac 2014}) 17. Bf1 {[%emt 0:06:25]} (17. Nd5 $5 {[%cal Rd5e7]}) 17... Rfc8 {[%emt 0:02:15]} 18. Qf2 {[%emt 0:04:24]} Ra6 {[%emt 0:25:29]} 19. h3 {[%emt 0:05:57]} Raa8 {[%emt 0:03:25]} 20. Kh1 {[%emt 0:02:45]} Bf6 {[%emt 0:02:11]} 21. Bd2 {[%emt 0:00:53]} Qd8 {[%emt 0:00:51]} 22. Be3 {[%emt 0:08:16]} Qa5 {[%emt 0:00:10]} 23. Bd2 {[%emt 0:00:18]} Qd8 {[%emt 0:00:06]} 24. Qe1 {[%emt 0:01:55]} Qf8 {[%emt 0:01:23]} 25. Be3 {[%emt 0:03:15]} Be5 {[%emt 0:02:31]} 26. Qd2 {[%emt 0:07:28]} Bf6 {[%emt 0:07:58]} (26... e6 {feels hotter.} 27. Nb5 f5 28. Rd1 b6) 27. Rc2 {[%emt 0:03:56]} Qd8 {[%emt 0:05:30]} 28. Re1 {[%emt 0:02:44]} Qa5 {[%emt 0:01:26]} 29. Nd5 {[%emt 0:02:11]} Bxd5 {[%emt 0:00:14]} 30. Qxa5 {[%emt 0:00:03]} Rxa5 {[%emt 0:00:07]} 31. cxd5 {[%emt 0:00:28]} Raa8 {[%emt 0:03:47]} 32. Rec1 {[%emt 0:02:28]} Rcb8 {[%emt 0:01:11]} 33. Bxc5 {[%emt 0:02:31]} dxc5 {[%emt 0:00:02]} 34. Rxc5 {[%emt 0:00:07]} Bxb2 {[%emt 0:00:26]} 35. Rb1 {[%emt 0:00:56]} Be5 {[%emt 0:01:44]} 36. Rcb5 {[%emt 0:01:35]} b6 {[%emt 0:00:26]} 37. R5b4 {[%emt 0:01:46]} Rc8 {[%emt 0:00:52]} (37... Bd6 $5 {[%cal Rd6b4]}) 38. Bb5 {[%emt 0:00:32]} ({Reject} 38. Rxb6 Rc2 39. Rb7 Kf8 $17) 38... Rc2 {[%emt 0:01:13]} 39. Rxa4 {[%emt 0:00:46]} (39. Bxa4 $11 Rxa2 40. Bc6) 39... Rxa4 $17 {[%emt 0:00:39]} 40. Bxa4 {[%emt 0:00:00]} Rxa2 $11 {[%emt 0:00:00][%mdl 4096] Endgame KRB-KRB} 41. Bc6 {[%emt 0:01:22]} Kg7 {[%emt 0:01:31]} 42. Kg1 {[%emt 0:01:35]} Kf6 {[%emt 0:01:25]} 43. h4 {[%emt 0:02:04]} h5 {[%emt 0:06:46]} 44. Bd7 {[%emt 0:01:30]} Kg7 {[%emt 0:02:32]} 45. Bh3 {[%emt 0:02:02]} Rc2 {[%emt 0:02:31]} 46. Kf1 {[%emt 0:01:59]} Bc7 {[%emt 0:05:01] Black is more active.} 47. Ke1 {[%emt 0:01:06]} Kf6 {[%emt 0:00:11]} 48. Kd1 {[%emt 0:01:18]} Ra2 {[%emt 0:00:27]} 49. Rc1 {[%emt 0:00:30]} Bd6 {[%emt 0:00:22]} 50. Rc6 {[%emt 0:00:48]} Ke5 {[%emt 0:01:28]} 51. Rxb6 {[%emt 0:00:43]} Kf4 {[%emt 0:01:05]} 52. Rc6 {[%emt 0:00:33]} Kg3 {[%emt 0:01:55]} 53. Rc2 $2 {[%emt 0:04:18][%mdl 8192] Loses the game.} (53. Rc8 $15) 53... Rxc2 $19 {[%emt 0:01:26]} 54. Kxc2 {[%emt 0:00:02]} Kxh4 {[%emt 0:01:41] [#] White must now prevent ...Kg3. KB-KB} 55. Kd3 {[%emt 0:03:17]} Kg3 {[%emt 0:00:44]} 56. Kd4 {[%emt 0:05:52]} f6 {[%emt 0:00:27]} 57. e5 {[%emt 0:05:07]} Bxe5+ {[%emt 0:00:15]} 58. Ke4 {[%emt 0:00:02]} Bd6 {[%emt 0:00:36]} 59. Kd4 {[%emt 0:01:18] Weighted Error Value: White=0.54/Black=0.07 (flawless)} 0-1

[Event "Arsen Yeghiazaryan Memorial 2022"]
[Site "Yerevan"]
[Date "2022.07.01"]
[Round "1.2"]
[White "Piliposyan, Robert"]
[Black "Yeritsyan, Hayk"]
[Result "1/2-1/2"]
[ECO "A58"]
[WhiteElo "2287"]
[BlackElo "2249"]
[Annotator "NA RC"]
[PlyCount "70"]
[EventDate "2022.06.30"]
[EventType "tourn"]
[EventCountry "ARM"]
[SourceTitle "playchess.com"]
[Source "ChessBase"]
[SourceQuality "1"]
[TimeControl "40/5400+30:1800+30"]

1. d4 {[%emt 0:00:02]} Nf6 {[%emt 0:00:55]} 2. c4 {[%emt 0:00:07]} c5 {[%emt 0:00:48]} 3. d5 {[%emt 0:00:04]} b5 {[%emt 0:00:19]} 4. cxb5 {[%emt 0:00:05]} a6 {[%emt 0:00:20]} 5. bxa6 {[%emt 0:00:06]} e6 $1 {[%emt 0:01:13]} 6. Nc3 {[%emt 0:10:37]} exd5 $1 {[%emt 0:00:33]} 7. Nxd5 {[%emt 0:01:07]} Be7 {[%emt 0:00:34]} 8. e3 {[%emt 0:07:25]} Nxd5 {[%emt 0:07:53]} 9. Qxd5 {[%emt 0:00:25]} Nc6 {[%emt 0:00:17]} ({Better is} 9... Ra7 $1 $11) 10. Nf3 {[%emt 0:24:11]} ({Much weaker is} 10. Bc4 O-O $11) (10. Bd2 $16) 10... Rxa6 {[%emt 0:28:05]} 11. Bc4 {[%emt 0:07:46]} (11. Bxa6 $16 Nb4 {[#]} 12. Qd1 $1 Bxa6 13. Ne5) 11... O-O {[%emt 0:00:54]} 12. O-O {[%emt 0:00:40]} Rb6 $1 {[%emt 0:02:16]} 13. Qh5 {[%emt 0:06:14]} Bb7 {[%emt 0:22:27]} 14. e4 {[%emt 0:12:19]} Nd4 {[%emt 0:04:08]} 15. Nxd4 {[%emt 0:06:09]} cxd4 {[%emt 0:00:02]} 16. Bd3 {[%emt 0:02:56]} Qa8 {[%emt 0:01:51]} 17. Re1 {[%emt 0:11:29]} Rc8 {[%emt 0:02:55]} 18. Qh3 {[%emt 0:01:35]} Bb4 {[%emt 0:02:07] [#]} 19. e5 $1 {[%emt 0:01:59]} h6 {[%emt 0:02:12]} (19... Bxe1 20. Qxh7+ Kf8 21. Qh8+ Ke7 22. Bg5+ f6 23. exf6+ Kd6 24. Bf4+ Kc5 25. Rc1+ Bc3 26. Qxg7 $18) 20. Rd1 $1 {[%emt 0:01:02]} Bf8 $16 {[%emt 0:04:03]} 21. Qg4 {[%emt 0:01:27]} Rc5 {[%emt 0:01:07]} 22. Re1 {[%emt 0:00:42]} Qa5 {[%emt 0:01:14]} 23. Bf4 {[%emt 0:00:43]} Rxb2 {[%emt 0:01:09]} 24. Qxd7 {[%emt 0:00:51]} Rc7 {[%emt 0:07:43]} 25. Qd8 {[%emt 0:02:02]} Rxa2 {[%emt 0:01:34]} 26. Rab1 {[%emt 0:00:55]} Re7 {[%emt 0:03:15]} 27. Qxa5 {[%emt 0:00:22]} Rxa5 {[%emt 0:00:01]} 28. Bd2 {[%emt 0:00:32]} Ra7 {[%emt 0:01:58]} 29. Bb4 {[%emt 0:00:14]} Re8 {[%emt 0:00:39]} 30. Bxf8 {[%emt 0:00:43]} Kxf8 {[%emt 0:00:12]} 31. Rb4 {[%emt 0:00:11]} Rd8 {[%emt 0:00:35]} 32. Reb1 {[%emt 0:00:24]} Ra3 {[%emt 0:00:44]} 33. R4b3 {[%emt 0:00:48]} Rda8 {[%emt 0:01:08]} 34. Rxa3 {[%emt 0:00:44]} Rxa3 {[%emt 0:00:02]} 35. Rxb7 {[%emt 0:00:28]} Rxd3 {[%emt 0:00:05]} 1/2-1/2

[Event "Arsen Yeghiazaryan Memorial 2022"]
[Site "Yerevan"]
[Date "2022.07.01"]
[Round "1.3"]
[White "Hayrapetyan, Hovik"]
[Black "Nazari, Arad"]
[Result "0-1"]
[ECO "D85"]
[WhiteElo "2481"]
[BlackElo "2401"]
[Annotator "TA"]
[PlyCount "120"]
[EventDate "2022.06.30"]
[EventType "tourn"]
[EventCountry "ARM"]
[SourceTitle "playchess.com"]
[Source "ChessBase"]
[SourceQuality "1"]
[TimeControl "40/5400+30:1800+30"]

{[%evp 29,120,7,11,-47,-43,-27,-54,-60,-55,-90,-40,-122,-118,-113,-46,-95,-119,-106,-100,-121,-118,-122,-126,-122,-122,-122,-122,-122,-122,-315,-371,-345,-360,-271,-291,-295,-318,-307,-307,-307,-302,-281,-270,-266,-263,-981,-944,-848,-805,-1463,-1455,-1212,-809,-752,-752,-29952,-29949,-29951,-29952,-29955,-29957,-29955,-29957,-29956,-29958,-29963,-29964,-29961,-29958,-29965,-29966,-29958,-29962,-29940,-29957,-29950,-29942,-29962,-29965,-29957,-12758,-29975,-29976,-29976,-29977,-29977,-29978,-29978,-29979,-29982,-29983,-29981,-29978]} 1. d4 Nf6 {[%emt 0:01:05]} 2. c4 {[%emt 0:00:05]} g6 {[%emt 0:00:06]} 3. Nc3 {[%emt 0:00:08]} d5 {[%emt 0:00:08]} 4. cxd5 {[%emt 0:00:05]} Nxd5 {[%emt 0:00:05]} 5. e4 {[%emt 0:00:04]} Nxc3 {[%emt 0:00:08]} 6. bxc3 {[%emt 0:00:03]} Bg7 {[%emt 0:00:10]} 7. Nf3 {[%emt 0:00:16]} c5 {[%emt 0:00:25]} 8. Rb1 {[%emt 0:01:01]} O-O {[%emt 0:00:52]} 9. Be2 {[%emt 0:00:04]} Nc6 {[%emt 0:00:12]} 10. d5 {[%emt 0:00:41]} Ne5 {[%emt 0:00:06]} 11. Nxe5 {[%emt 0:00:58]} Bxe5 {[%emt 0:00:09]} 12. Qd2 {[%emt 0:02:10]} e6 {[%emt 0:00:18]} 13. f4 {[%emt 0:00:37]} Bc7 {[%emt 0:00:08]} 14. O-O {[%emt 0:03:57]} exd5 {[%emt 0:00:14]} 15. exd5 {[%emt 0:01:05]} Ba5 {[%emt 0:00:09]} 16. Bb2 {[%emt 0:01:31] D85: Exchange Grünfeld: Unusual White 7th moves and lines with 7 Nf3.} ({White should play} 16. f5 $11 Bxf5 17. Rxb7) 16... Bf5 $15 {[%emt 0:01:48]} 17. Rbd1 {[%emt 0:00:41]} Qd6 {[%emt 0:01:03]} 18. g4 {[%emt 0:33:10] Black is slightly better.} Be4 {[%emt 0:06:13][%cal Oc5c4] [#]} 19. Bf3 $146 {[%emt 0:01:04]} ({Predecessor:} 19. Qe3 Bc2 20. c4 Rfe8 21. Qf2 Bxd1 22. Bxd1 f6 23. g5 f5 24. Ba1 Re4 25. Qb2 {0-1 (59) Spiess,G (2410)-Jansa,V (2490) Germany 1997}) 19... Rfe8 {[%emt 0:12:28]} ({Black should try} 19... Rae8 $17) 20. Kg2 {[%emt 0:13:21]} (20. Qe2 $1 $15 Bxf3 21. Qxf3) 20... c4 {[%emt 0:14:30]} 21. Rfe1 {[%emt 0:04:48]} Bd3 {[%emt 0:02:58]} (21... Bxf3+ $17 22. Kxf3 Rxe1 23. Rxe1 Rd8) 22. Rxe8+ {[%emt 0:04:52]} (22. Qc1 $15 {is superior.}) 22... Rxe8 $17 {[%emt 0:00:09]} 23. Re1 {[%emt 0:00:02] [#] Prevents Qe7.} Re7 {[%emt 0:14:46]} (23... Rxe1 $6 24. Qxe1 Bc7 25. Bc1 $11) 24. Qc1 {[%emt 0:06:40] [#]} Bb6 $1 {[%emt 0:17:18] 0x0.00207cf2f26adp-1022s more active pieces.} (24... Rxe1 $6 25. Qxe1 Bc7 26. Bc1 $11) 25. Rxe7 {[%emt 0:00:29]} Qxe7 {[%emt 0:00:02]} 26. Ba3 {[%emt 0:00:06]} Qh4 {[%emt 0:01:36] ( -> ...Qf2+)} 27. Qd2 {[%emt 0:00:05] Inhibits Qf2+.} f5 {[%emt 0:01:28]} 28. gxf5 {[%emt 0:07:06]} gxf5 $40 {[%emt 0:03:06][%mdl 128] White is in trouble.} ({Not} 28... Bxf5 29. Kh1 $11) 29. d6 $2 {[%emt 0:05:05] White does not recover from this.} (29. h3 $17) 29... Be4 $19 {[%emt 0:14:20]} 30. Bxe4 {[%emt 0:00:05] Threatening mate with Qd5+.} Qg4+ {[%emt 0:00:15]} ({And not} 30... fxe4 31. Qd5+ Kg7 32. Qe5+ Kh6 33. Qe6+ Kh5 34. Qe5+ Kh6 35. Qe6+ Kh5 36. Qe5+ Kh6 $11) 31. Kf1 {[%emt 0:00:03]} Qg1+ {[%emt 0:00:12]} ({Stronger than} 31... fxe4 32. Qd5+ (32. Qg2 Qxg2+ 33. Kxg2 Kf7 $17) 32... Kg7 33. Qxb7+ Kh6 34. Qxe4 $11) 32. Ke2 {[%emt 0:00:03]} Qxh2+ {[%emt 0:00:20]} 33. Kd1 {[%emt 0:00:01] White wants to mate with Qd5+.} Qxd2+ {[%emt 0:00:13]} 34. Kxd2 {[%emt 0:00:02]} fxe4 {[%emt 0:00:09][%mdl 4096] Endgame KB-KB} 35. d7 {[%emt 0:01:35]} Kf7 {[%emt 0:00:09] Prevents Be7.} 36. Bc5 {[%emt 0:01:00] Threatens to win with Bxb6.} Bd8 {[%emt 0:02:59] ...Ke6 is the strong threat.} 37. Bxa7 $2 {[%emt 0:00:48]} (37. Ke3 b6 38. Bd4) 37... Ke6 {[%emt 0:00:34]} 38. Ke3 {[%emt 0:00:03]} Kf5 {[%emt 0:03:05]} 39. Kf2 {[%emt 0:09:58]} Kxf4 {[%emt 0:01:40]} 40. Be3+ {[%emt 0:00:04]} Kg4 {[%emt 0:00:52]} 41. Bh6 {[%emt 0:00:15]} Kf5 {[%emt 0:01:36] White must now prevent ...Kg6.} 42. a4 {[%emt 0:03:22]} Kg6 {[%emt 0:09:12]} 43. Be3 {[%emt 0:18:24]} h5 {[%emt 0:00:10]} 44. Kg3 {[%emt 0:00:01]} Kf5 {[%emt 0:00:07]} 45. Bf2 Bc7+ {[%emt 0:04:25]} 46. Kh4 {[%emt 0:00:45]} Ke6 {[%emt 0:00:07]} 47. Kxh5 {[%emt 0:00:16]} Kxd7 {[%emt 0:00:09]} 48. Kg4 {[%emt 0:00:18]} Ke6 {[%emt 0:00:07]} 49. Be3 {[%emt 0:00:20]} Be5 {[%emt 0:03:08]} 50. Bd2 {[%emt 0:00:14]} Bg7 {[%emt 0:01:12]} 51. Kg3 {[%emt 0:03:10]} Kd5 {[%emt 0:01:07]} 52. Be1 {[%emt 0:04:13]} Bh6 {[%emt 0:00:27]} 53. Kg4 {[%emt 0:00:05]} Bc1 {[%emt 0:00:24]} 54. Kg3 {[%emt 0:00:26]} Kc5 {[%emt 0:02:01]} (54... Kc6 $142 55. Kf2 Kb6 56. Ke2 Bf4 57. a5+ Kxa5 58. Bf2 Ka4 59. Kf1 Kb3 60. Bd4 b5 61. Kg2 b4 62. Be5 Bxe5 63. Kh3 e3 64. Kh4 bxc3 65. Kg5 e2 66. Kf5 e1=Q 67. Ke6 c2 68. Ke7 c1=Q 69. Ke8 Bd6+ 70. Kd7 Qa3 71. Kd8 Qe7+ 72. Kc8 Qc7#) 55. Bf2+ {[%emt 0:02:05]} e3 {[%emt 0:00:21] Black mates.} 56. Bg1 {[%emt 0:00:04]} Kb6 {[%emt 0:00:21]} 57. Kf3 {[%emt 0:00:29]} Ka5 {[%emt 0:00:06]} 58. Ke2 {[%emt 0:00:36]} Kxa4 {[%emt 0:00:07]} 59. Kd1 {[%emt 0:00:03]} Bd2 {[%emt 0:00:11]} 60. Kc2 {[%emt 0:00:06]} b5 {[%emt 0:00:29] Weighted Error Value: White=0.58/Black=0.19 (very precise)} 0-1

[Event "Arsen Yeghiazaryan Memorial 2022"]
[Site "Yerevan"]
[Date "2022.07.01"]
[Round "1.4"]
[White "Quparadze, Giga"]
[Black "Atakhan, Abtin"]
[Result "0-1"]
[ECO "B19"]
[WhiteElo "2482"]
[BlackElo "2344"]
[Annotator "TA"]
[PlyCount "104"]
[EventDate "2022.06.30"]
[EventType "tourn"]
[EventCountry "ARM"]
[SourceTitle "playchess.com"]
[Source "ChessBase"]
[SourceQuality "1"]
[TimeControl "40/5400+30:1800+30"]

{[%evp 20,104,12,0,0,4,7,0,0,-5,3,-19,-24,-37,-20,-32,-26,-37,-15,-25,0,-45,-44,-51,-49,-58,-11,-16,-20,-26,-33,-87,-87,-72,-81,-73,-21,-50,-16,-63,-57,-68,-57,-34,-65,-141,-151,-191,-183,-418,-416,-424,-417,-483,-483,-477,-412,-486,-486,-471,-440,-492,-482,-539,-563,-580,-565,-29972,-29973,-29969,-29974,-29971,-29972,-29971,-29973,-29972,-29974,-6126,-5604,-29985,-29986,-29986,-29987,-29987,-29988,-29996,-29997]} 1. e4 {[%emt 0:00:06]} c6 {[%emt 0:00:07]} 2. d4 {[%emt 0:00:06]} d5 {[%emt 0:00:10]} 3. Nc3 {[%emt 0:00:05]} dxe4 {[%emt 0:00:11]} 4. Nxe4 {[%emt 0:00:04]} Bf5 {[%emt 0:00:08]} 5. Ng3 {[%emt 0:00:06]} Bg6 {[%emt 0:00:06]} 6. h4 {[%emt 0:00:05]} h6 {[%emt 0:00:06]} 7. Nf3 {[%emt 0:00:04]} Nd7 {[%emt 0:00:07]} 8. h5 {[%emt 0:00:05]} Bh7 {[%emt 0:00:04]} 9. Bd3 {[%emt 0:00:04]} Bxd3 {[%emt 0:00:07]} 10. Qxd3 {[%emt 0:00:04]} e6 {[%emt 0:00:05]} 11. Bf4 {[%emt 0:00:49]} Qa5+ {[%emt 0:00:35] B19: Classical Caro-Kann: 4...Bf5 main line.} 12. Bd2 {[%emt 0:00:05]} Bb4 {[%emt 0:00:07]} 13. c3 {[%emt 0:00:05]} Be7 {[%emt 0:00:08] The position is equal.} 14. c4 {[%emt 0:00:04]} Qc7 {[%emt 0:00:22]} 15. O-O-O {[%emt 0:00:10]} Ngf6 {[%emt 0:00:22]} 16. Rhe1 {[%emt 0:00:06]} b5 {[%emt 0:00:43]} 17. c5 {[%emt 0:01:14]} O-O {[%emt 0:00:31] [#]} 18. Qc2 $146 {[%emt 0:02:05]} ({Predecessor:} 18. Kb1 a5 19. Ne2 Ng4 20. Rf1 Rfd8 21. Qc2 b4 22. Ne1 e5 23. f3 Ngf6 24. Nd3 {0-1 (44) Stellwagen,D (2625)-Jakovenko,D (2720) France 2008}) 18... Ng4 {[%emt 0:05:08]} 19. Ne4 {[%emt 0:00:05]} Rad8 {[%emt 0:16:56]} 20. Re2 {[%emt 0:02:27]} Ndf6 {[%emt 0:04:58]} 21. Nxf6+ {[%emt 0:00:09]} Nxf6 {[%emt 0:00:08]} 22. g4 {[%emt 0:00:45]} Nh7 {[%emt 0:00:09] Inhibits g5.} (22... Nxg4 23. Rg1 f5 24. Rxe6 $14) (22... Rd5 $15) 23. Be3 {[%emt 0:01:45]} Rd5 {[%emt 0:02:04]} 24. Ne5 {[%emt 0:02:39]} Bxc5 {[%emt 0:09:28][%cal Oh7f6]} 25. Nxf7 {[%emt 0:12:03]} ({White should try} 25. Kb1 $15) 25... Qxf7 $17 {[%emt 0:04:36]} 26. dxc5 {[%emt 0:00:08]} Qf3 {[%emt 0:01:08]} 27. Rg1 {[%emt 0:01:28]} Rfd8 {[%emt 0:01:59]} (27... a5 $17) 28. Ree1 {[%emt 0:00:26]} Nf6 {[%emt 0:08:58]} 29. Kb1 {[%emt 0:06:26]} (29. Rg3 $11 Qe4 30. f3) 29... Nxg4 $15 {[%emt 0:03:51]} 30. Bc1 {[%emt 0:00:16]} Qf5 {[%emt 0:11:13] Black is much more active.} (30... Nxf2 $2 31. Rxg7+ $3 {[%mdl 512]} Kf8 32. Rg8+ $3 {[%mdl 512]} Kxg8 33. Qg6+ Kh8 34. Qxh6+ Kg8 35. Qxe6+ Kh8 36. Qh6+ Kg8 37. Re7 (37. Rg1+ $2 Ng4 $19) 37... Qf5+ 38. Ka1 $18) (30... Qxf2 31. Qxf2 Nxf2 32. Rxe6 $11) (30... Rxh5 31. Rxe6 Rh1 32. Rxh1 Qxh1 33. Qe2 $11 (33. Qg6 Qf3 $11)) 31. Qxf5 {[%emt 0:00:17]} exf5 {[%emt 0:00:03]} 32. f3 {[%emt 0:00:07] [#] Black continues to play with concentration.} (32. Re6 $15) 32... Ne5 $1 $36 {[%emt 0:02:25][%mdl 2048] Black is in control.} 33. Bxh6 {[%emt 0:06:16] [#]} Kh7 {[%emt 0:01:11]} ({Inferior is} 33... R8d7 34. Re3 $15) 34. Rxe5 $2 {[%emt 0:00:08]} ({Avoid the trap} 34. Bxg7 $2 Nxf3 35. Bf6 Nxe1 36. Rxe1 Rd1+ 37. Rxd1 Rxd1+ 38. Kc2 Rh1 $19) (34. Bg5 Nxf3 35. Bxd8 Nxg1 36. Bc7) 34... Rxe5 $19 {[%emt 0:00:09]} 35. Bxg7 {[%emt 0:00:09][%mdl 4096] Endgame KRR-KRB} Red5 {[%emt 0:04:22]} 36. Rg2 {[%emt 0:00:34]} Rd2 {[%emt 0:03:28]} 37. Rg5 {[%emt 0:00:06]} Rf2 {[%emt 0:00:36][%cal Rd8d1]} 38. a3 {[%emt 0:01:53]} Rg8 {[%emt 0:01:01]} 39. h6 {[%emt 0:00:21]} Rxf3 {[%emt 0:00:05]} 40. Kc2 {[%emt 0:00:00]} Rd8 {[%emt 0:00:00]} 41. Rg2 {[%emt 0:05:10]} f4 {[%emt 0:03:01]} 42. Rg5 {[%emt 0:00:05]} a5 {[%emt 0:03:21][%cal Ba7a5,Ba5b4,Bb4c3][%mdl 32] White must now prevent ...b4.} 43. Rf5 {[%emt 0:01:09]} b4 {[%emt 0:01:07] Against Bc3} 44. axb4 {[%emt 0:00:05]} axb4 {[%emt 0:00:04]} 45. b3 {[%emt 0:00:03]} Rf2+ {[%emt 0:00:24]} 46. Kc1 {[%emt 0:00:04]} Rf1+ {[%emt 0:01:34]} 47. Kc2 {[%emt 0:00:10]} Rfd1 {[%emt 0:00:13][%csl Gd1][%cal Rd8d2]} 48. Bc3 {[%emt 0:00:38]} bxc3 {[%emt 0:00:15]} 49. Rxf4 {[%emt 0:00:19]} R8d3 {[%emt 0:00:26] Black mates.} 50. Rf7+ {[%emt 0:00:11]} Kxh6 {[%emt 0:00:11]} 51. Rf6+ {[%emt 0:00:04]} Kg5 {[%emt 0:00:04]} 52. Rxc6 {[%emt 0:00:04]} R1d2+ {[%emt 0:00:05] Weighted Error Value: White=0.53/Black=0.06 (flawless)} 0-1